[Event "XIV American Continental-ch 2019"]
[Site "Sao Paulo"]
[Date "2019.07.07"]
[Round "4.2"]
[White "Krysa, Leandro"]
[Black "Gareyev, Timur"]
[Result "1-0"]
[ECO "D70"]
[WhiteElo "2517"]
[BlackElo "2588"]
[Annotator "ChessBase"]
[PlyCount "75"]
[EventDate "2019.07.05"]
[EventType "swiss"]
[EventCountry "BRA"]
[SourceTitle "playchess.com"]
[Source "ChessBase"]
[SourceQuality "1"]
[TimeControl "40/5400+30:1800+30"]

1. d4 {[%emt 0:00:00]} Nf6 {[%emt 0:01:58]} 2. c4 {[%emt 0:00:00]} g6 {[%emt 0:03:37]} 3. Nf3 {[%emt 0:00:18]} Bg7 {[%emt 0:00:11]} 4. g3 {[%emt 0:00:13]} c6 {[%emt 0:05:30]} 5. Bg2 {[%emt 0:00:42]} d5 {[%emt 0:00:10]} 6. Ne5 {[%emt 0:00:35]} dxc4 {[%emt 0:02:13]} 7. Na3 {[%emt 0:06:23]} Ng4 {[%emt 0:03:27]} 8. Naxc4 {[%emt 0:03:44]} Nxe5 {[%emt 0:05:01]} 9. Nxe5 {[%emt 0:00:10]} Bxe5 {[%emt 0:00:39]} 10. dxe5 {[%emt 0:00:07]} Qxd1+ {[%emt 0:00:04]} 11. Kxd1 {[%emt 0:00:08]} Be6 {[%emt 0:00:16]} 12. Kc2 {[%emt 0:12:07]} a5 {[%emt 0:13:59]} 13. b3 {[%emt 0:11:31]} a4 {[%emt 0:06:04]} 14. Ba3 {[%emt 0:01:24]} Ra5 {[%emt 0:06:59]} 15. f4 {[%emt 0:08:05]} axb3+ {[%emt 0:04:53]} 16. axb3 {[%emt 0:00:06]} Na6 {[%emt 0:00:14]} 17. e4 {[%emt 0:08:04]} h5 {[%emt 0:04:10]} 18. h3 {[%emt 0:05:45]} c5 {[%emt 0:06:06]} 19. Rhf1 {[%emt 0:10:22]} O-O {[%emt 0:00:42]} 20. f5 {[%emt 0:01:16]} Bd7 {[%emt 0:00:01]} 21. g4 {[%emt 0:08:19]} Ra8 {[%emt 0:00:18]} 22. Bb2 {[%emt 0:02:35]} Nb4+ {[%emt 0:00:19]} 23. Kd2 {[%emt 0:04:58]} Ra2 {[%emt 0:17:52]} 24. Kc3 {[%emt 0:05:01]} Bb5 {[%emt 0:00:35]} 25. Rg1 {[%emt 0:04:04]} Rxa1 {[%emt 0:03:14]} 26. Rxa1 {[%emt 0:00:52]} Rd8 {[%emt 0:00:26]} 27. Bf1 {[%emt 0:00:28]} Bxf1 {[%emt 0:08:51]} 28. Rxf1 {[%emt 0:00:01]} Rd3+ {[%emt 0:02:38]} 29. Kc4 {[%emt 0:00:04]} b5+ {[%emt 0:00:28]} 30. Kxc5 {[%emt 0:01:34]} Rxb3 {[%emt 0:00:03]} 31. Bd4 {[%emt 0:02:37]} Nc2 {[%emt 0:01:30]} 32. gxh5 {[%emt 0:00:36]} gxh5 {[%emt 0:00:23]} 33. Rg1+ {[%emt 0:01:06]} Kf8 {[%emt 0:00:20]} 34. f6 {[%emt 0:00:39]} exf6 {[%emt 0:01:33]} 35. exf6 {[%emt 0:00:14]} Ke8 {[%emt 0:02:03]} 36. Kd6 {[%emt 0:00:57]} Kf8 {[%emt 0:00:02]} 37. Bc5 {[%emt 0:00:36]} Rc3 {[%emt 0:00:22]} 38. Kc6+ {[%emt 0:00:19]} 1-0

[Event "XIV American Continental-ch 2019"]
[Site "Sao Paulo"]
[Date "2019.07.07"]
[Round "4.3"]
[White "Pichot, Alan"]
[Black "Cubas, Jose Fernando"]
[Result "1-0"]
[ECO "C11"]
[WhiteElo "2579"]
[BlackElo "2493"]
[Annotator "ChessBase"]
[PlyCount "30"]
[EventDate "2019.07.05"]
[EventType "swiss"]
[EventCountry "BRA"]
[SourceTitle "playchess.com"]
[Source "ChessBase"]
[SourceQuality "1"]
[TimeControl "40/5400+30:1800+30"]

1. e4 {[%emt 0:02:51]} e6 {[%emt 0:00:00]} 2. d4 {[%emt 0:00:10]} d5 {[%emt 0:00:00]} 3. Nc3 {[%emt 0:01:44]} Nf6 {[%emt 0:01:22]} 4. e5 {[%emt 0:00:15]} Nfd7 {[%emt 0:00:05]} 5. f4 {[%emt 0:00:24]} c5 {[%emt 0:00:09]} 6. Nf3 {[%emt 0:00:04]} Nc6 {[%emt 0:00:05]} 7. Be3 {[%emt 0:00:05]} Be7 {[%emt 0:10:55]} 8. Qd2 {[%emt 0:03:48]} O-O {[%emt 0:00:41]} 9. dxc5 {[%emt 0:00:06]} Nxc5 {[%emt 0:15:30]} 10. O-O-O {[%emt 0:01:00]} Rb8 {[%emt 0:19:18]} 11. Kb1 {[%emt 0:16:01]} Bd7 {[%emt 0:11:26]} 12. f5 {[%emt 0:05:53]} exf5 {[%emt 0:01:21]} 13. Bxc5 {[%emt 0:01:25]} Bxc5 {[%emt 0:00:44]} 14. Qxd5 Bc8 15. Qd2 Be7 1-0

[Event "XIV American Continental-ch 2019"]
[Site "Sao Paulo"]
[Date "2019.07.07"]
[Round "4.4"]
[White "Supi, Luis Paulo"]
[Black "Hambleton, Aman"]
[Result "1/2-1/2"]
[ECO "A20"]
[WhiteElo "2562"]
[BlackElo "2487"]
[Annotator "ChessBase"]
[PlyCount "63"]
[EventDate "2019.07.05"]
[EventType "swiss"]
[EventCountry "BRA"]
[SourceTitle "playchess.com"]
[Source "ChessBase"]
[SourceQuality "1"]
[TimeControl "40/5400+30:1800+30"]

1. c4 {[%emt 0:00:00]} e5 {[%emt 0:00:30]} 2. g3 {[%emt 0:00:37]} Nf6 {[%emt 0:01:33]} 3. Bg2 {[%emt 0:00:28]} c6 {[%emt 0:00:23]} 4. e4 {[%emt 0:03:35]} d5 {[%emt 0:07:51]} 5. cxd5 {[%emt 0:00:26]} cxd5 {[%emt 0:00:09]} 6. exd5 {[%emt 0:00:08]} Nxd5 {[%emt 0:00:20]} 7. Nf3 {[%emt 0:00:06]} Nc6 {[%emt 0:00:54]} 8. O-O {[%emt 0:00:32]} Be7 {[%emt 0:05:39]} 9. d4 {[%emt 0:04:50]} exd4 {[%emt 0:03:48]} 10. Nxd4 {[%emt 0:00:23]} O-O {[%emt 0:00:16]} 11. Nxc6 {[%emt 0:01:53]} bxc6 {[%emt 0:00:08]} 12. Nc3 {[%emt 0:06:37]} Nxc3 {[%emt 0:18:30]} 13. bxc3 {[%emt 0:00:07]} Ba6 {[%emt 0:01:30]} 14. Re1 {[%emt 0:01:25]} Bf6 {[%emt 0:00:18]} 15. Ba3 {[%emt 0:05:22]} Bxc3 {[%emt 0:12:02]} 16. Bxf8 {[%emt 0:01:26]} Qxd1 {[%emt 0:19:25]} 17. Rexd1 {[%emt 0:26:25]} Bxa1 {[%emt 0:00:10]} 18. Be7 {[%emt 0:00:09]} Bf6 {[%emt 0:05:22]} 19. Bxc6 {[%emt 0:02:44]} Rc8 {[%emt 0:00:17]} 20. Bxf6 {[%emt 0:01:13]} gxf6 {[%emt 0:00:05]} 21. Rd6 {[%emt 0:01:12]} Bc4 {[%emt 0:00:52]} 22. Bd5 {[%emt 0:02:44]} a5 {[%emt 0:02:10]} 23. Bxc4 {[%emt 0:08:12]} Rxc4 {[%emt 0:00:10]} 24. Rxf6 {[%emt 0:00:13]} Ra4 {[%emt 0:00:13]} 25. Rf5 {[%emt 0:00:08]} Rxa2 {[%emt 0:00:13]} 26. g4 {[%emt 0:00:10]} h6 {[%emt 0:00:28]} 27. Kg2 {[%emt 0:00:55]} Ra3 {[%emt 0:01:59]} 28. h4 {[%emt 0:00:51]} Kg7 {[%emt 0:00:15]} 29. f3 {[%emt 0:01:53]} Ra2+ {[%emt 0:01:35]} 30. Kg3 {[%emt 0:00:21]} Ra1 {[%emt 0:00:31]} 31. h5 {[%emt 0:02:30]} a4 {[%emt 0:02:58]} 32. Ra5 {[%emt 0:00:11]} 1/2-1/2

[Event "XIV American Continental-ch 2019"]
[Site "Sao Paulo"]
[Date "2019.07.07"]
[Round "4.5"]
[White "Quintiliano Pinto, Renato R."]
[Black "Perez Ponsa, Federico"]
[Result "1/2-1/2"]
[ECO "E97"]
[WhiteElo "2443"]
[BlackElo "2560"]
[Annotator "ChessBase"]
[PlyCount "59"]
[EventDate "2019.07.05"]
[EventType "swiss"]
[EventCountry "BRA"]
[SourceTitle "playchess.com"]
[Source "ChessBase"]
[SourceQuality "1"]
[TimeControl "40/5400+30:1800+30"]

1. Nf3 {[%emt 0:00:00]} Nf6 {[%emt 0:01:49]} 2. c4 {[%emt 0:00:21]} g6 {[%emt 0:00:08]} 3. Nc3 {[%emt 0:01:22]} Bg7 {[%emt 0:00:06]} 4. d4 {[%emt 0:00:32]} d6 {[%emt 0:00:06]} 5. e4 {[%emt 0:00:52]} O-O {[%emt 0:00:06]} 6. Be2 {[%emt 0:00:12]} e5 {[%emt 0:00:08]} 7. O-O {[%emt 0:00:14]} Nc6 {[%emt 0:00:04]} 8. d5 {[%emt 0:00:20]} Ne7 {[%emt 0:00:05]} 9. b4 {[%emt 0:01:19]} a5 {[%emt 0:00:16]} 10. Ba3 {[%emt 0:00:06]} Re8 {[%emt 0:00:04]} 11. bxa5 {[%emt 0:03:03]} c5 {[%emt 0:00:12]} 12. Nd2 {[%emt 0:11:07]} Rxa5 {[%emt 0:00:39]} 13. Bb2 {[%emt 0:00:06]} Rf8 {[%emt 0:01:20]} 14. Nb5 {[%emt 0:03:46]} Ra6 {[%emt 0:03:39]} 15. a4 {[%emt 0:05:11]} Ne8 {[%emt 0:02:14]} 16. Ra3 {[%emt 0:06:52]} f5 {[%emt 0:02:21]} 17. exf5 {[%emt 0:08:37]} gxf5 {[%emt 0:02:53]} 18. f4 {[%emt 0:00:48]} Ng6 {[%emt 0:08:26]} 19. fxe5 {[%emt 0:18:11]} dxe5 {[%emt 0:00:07]} 20. Kh1 {[%emt 0:02:16]} Qe7 {[%emt 0:12:13]} 21. g4 {[%emt 0:10:19]} Nf4 {[%emt 0:07:02]} 22. gxf5 {[%emt 0:00:41]} Rh6 {[%emt 0:02:20]} 23. Qe1 {[%emt 0:06:51]} Bxf5 {[%emt 0:11:39]} 24. Rg1 {[%emt 0:02:59]} Rff6 {[%emt 0:06:19]} 25. Rgg3 {[%emt 0:05:55]} Rh4 {[%emt 0:03:54]} 26. Bf1 {[%emt 0:00:47]} Rg6 {[%emt 0:12:21]} 27. Nf3 {[%emt 0:05:19]} Rxg3 {[%emt 0:08:42]} 28. Nxh4 {[%emt 0:00:10]} Rxa3 {[%emt 0:04:00]} 29. Nxf5 {[%emt 0:00:07]} Qg5 {[%emt 0:00:01]} 30. Bxa3 {[%emt 0:02:52]} 1/2-1/2

[Event "XIV American Continental-ch 2019"]
[Site "Sao Paulo"]
[Date "2019.07.08"]
[Round "4.6"]
[White "Fier, Alexandr"]
[Black "Santiago, Yago De Moura"]
[Result "1-0"]
[ECO "A34"]
[WhiteElo "2547"]
[BlackElo "2473"]
[Annotator "ChessBase"]
[PlyCount "107"]
[EventDate "2019.07.05"]
[EventType "swiss"]
[EventCountry "BRA"]
[SourceTitle "playchess.com"]
[Source "ChessBase"]
[SourceQuality "1"]
[TimeControl "40/5400+30:1800+30"]

1. c4 {[%emt 0:00:00]} Nf6 {[%emt 0:00:01]} 2. Nc3 {[%emt 0:00:14]} c5 {[%emt 0:00:25]} 3. Nf3 {[%emt 0:00:43]} d5 {[%emt 0:00:09]} 4. cxd5 {[%emt 0:01:15]} Nxd5 {[%emt 0:00:09]} 5. e3 {[%emt 0:00:02]} Nc6 {[%emt 0:02:23]} 6. d4 {[%emt 0:00:15]} cxd4 {[%emt 0:00:26]} 7. exd4 {[%emt 0:00:49]} e6 {[%emt 0:00:19]} 8. Bd3 {[%emt 0:00:14]} Be7 {[%emt 0:01:03]} 9. O-O {[%emt 0:00:06]} O-O {[%emt 0:00:57]} 10. Qe2 {[%emt 0:03:01]} Nf6 {[%emt 0:01:52]} 11. Rd1 {[%emt 0:00:22]} Nb4 {[%emt 0:01:32]} 12. Ne5 {[%emt 0:00:07]} Bd7 {[%emt 0:04:55]} 13. Bc4 {[%emt 0:00:26]} Bc6 {[%emt 0:08:21]} 14. Bb3 {[%emt 0:07:53]} Rc8 {[%emt 0:03:42]} 15. Bg5 {[%emt 0:02:02]} Nfd5 {[%emt 0:10:32]} 16. Nxc6 {[%emt 0:01:05]} Nxc6 {[%emt 0:02:25]} 17. Be3 {[%emt 0:03:00]} Nxe3 {[%emt 0:06:33]} 18. fxe3 {[%emt 0:00:52]} Bd6 {[%emt 0:00:20]} 19. Rf1 {[%emt 0:04:07]} Na5 {[%emt 0:04:25]} 20. Bc2 {[%emt 0:04:32]} Nc4 {[%emt 0:03:48]} 21. Rf3 {[%emt 0:05:40]} g6 {[%emt 0:03:07]} 22. Bd3 {[%emt 0:00:44]} Nb6 {[%emt 0:01:32]} 23. Raf1 {[%emt 0:04:03]} f5 {[%emt 0:05:14]} 24. e4 {[%emt 0:06:02]} f4 {[%emt 0:09:36]} 25. e5 {[%emt 0:07:54]} Bb4 {[%emt 0:00:15]} 26. Rxf4 {[%emt 0:02:08]} Rxf4 {[%emt 0:00:13]} 27. Rxf4 {[%emt 0:00:02]} Bxc3 {[%emt 0:00:14]} 28. bxc3 {[%emt 0:00:04]} Rxc3 {[%emt 0:02:50]} 29. h4 {[%emt 0:00:58]} Nd5 {[%emt 0:10:16]} 30. Rg4 {[%emt 0:00:04]} Kh8 {[%emt 0:01:41]} 31. Qd2 {[%emt 0:01:45]} Qf8 {[%emt 0:01:47]} 32. Be4 {[%emt 0:02:29]} Ne3 {[%emt 0:06:07]} 33. Qxc3 {[%emt 0:08:37]} Qf1+ {[%emt 0:00:08]} 34. Kh2 {[%emt 0:00:02]} Nxg4+ {[%emt 0:00:05]} 35. Kg3 {[%emt 0:00:07]} h5 {[%emt 0:02:08]} 36. Qd2 {[%emt 0:02:55]} Qh1 {[%emt 0:03:54]} 37. Bxg6 {[%emt 0:04:51]} Qh2+ {[%emt 0:00:16]} 38. Kf3 {[%emt 0:00:04]} Qxh4 {[%emt 0:00:05]} 39. g3 {[%emt 0:06:58]} Qh1+ {[%emt 0:00:50]} 40. Kf4 {[%emt 0:00:03]} Kg7 {[%emt 0:04:45]} 41. Kg5 {[%emt 0:32:15]} Nh2 {[%emt 0:18:04]} 42. Bxh5 {[%emt 0:00:00]} Nf3+ {[%emt 0:00:08]} 43. Bxf3 {[%emt 0:00:00]} Qxf3 {[%emt 0:00:04]} 44. Qf4 {[%emt 0:00:00]} Qd5 {[%emt 0:00:10]} 45. Qf6+ {[%emt 0:00:00]} Kg8 {[%emt 0:00:12]} 46. Qe7 {[%emt 0:00:00]} Qc6 {[%emt 0:06:54]} 47. Kf6 {[%emt 0:00:00]} Qf3+ {[%emt 0:00:09]} 48. Kxe6 {[%emt 0:00:00]} Qg4+ {[%emt 0:00:09]} 49. Kf6 {[%emt 0:00:00]} Qf3+ {[%emt 0:00:13]} 50. Kg6 {[%emt 0:00:00]} Qe4+ {[%emt 0:00:13]} 51. Kh6 {[%emt 0:00:00]} Qh1+ {[%emt 0:00:13]} 52. Qh4 {[%emt 0:00:00]} Qc6+ {[%emt 0:00:08]} 53. Qf6 {[%emt 0:00:00]} Qh1+ {[%emt 0:00:06]} 54. Kg6 {[%emt 0:00:00]} 1-0

[Event "XIV American Continental-ch 2019"]
[Site "Sao Paulo"]
[Date "2019.07.07"]
[Round "4.7"]
[White "Leitao, Rafael"]
[Black "Garcia Cardenas, Pablo"]
[Result "1-0"]
[ECO "D37"]
[WhiteElo "2616"]
[BlackElo "2443"]
[Annotator "RC"]
[PlyCount "85"]
[EventDate "2019.07.05"]
[EventType "swiss"]
[EventCountry "BRA"]
[SourceTitle "playchess.com"]
[Source "ChessBase"]
[SourceQuality "1"]
[TimeControl "40/5400+30:1800+30"]

1. d4 {[%emt 0:02:32]} d5 {[%emt 0:00:00]} 2. c4 {[%emt 0:00:05]} e6 {[%emt 0:00:00]} 3. Nf3 {[%emt 0:00:06]} Nf6 {[%emt 0:00:00]} 4. Nc3 {[%emt 0:00:09]} Be7 {[%emt 0:00:00]} 5. Bf4 {[%emt 0:00:31]} O-O {[%emt 0:01:14]} 6. a3 {[%emt 0:01:24]} c5 {[%emt 0:05:50]} 7. dxc5 {[%emt 0:00:48]} Bxc5 {[%emt 0:00:06]} 8. e3 {[%emt 0:01:10]} Nc6 {[%emt 0:00:18]} 9. Qc2 {[%emt 0:01:46]} Qa5 {[%emt 0:01:22]} 10. Nd2 {[%emt 0:02:01]} Bb4 {[%emt 0:13:30]} 11. cxd5 {[%emt 0:03:28]} exd5 {[%emt 0:01:44]} 12. Bd3 {[%emt 0:00:55]} h6 {[%emt 0:13:59]} 13. O-O {[%emt 0:04:31]} Bxc3 {[%emt 0:01:05]} 14. Nb3 {[%emt 0:11:57]} Qb6 {[%emt 0:18:05]} 15. Qxc3 {[%emt 0:12:15]} d4 {[%emt 0:08:35]} 16. Qc2 {[%emt 0:00:27]} dxe3 {[%emt 0:07:15]} 17. Bxe3 {[%emt 0:01:03]} Qc7 {[%emt 0:00:04]} 18. h3 {[%emt 0:00:49]} Be6 {[%emt 0:05:23]} 19. Nd4 {[%emt 0:03:19]} Bd5 {[%emt 0:03:16]} 20. Nf5 {[%emt 0:01:03]} Rfe8 {[%emt 0:04:06]} 21. Bd4 {[%emt 0:06:33]} Re6 {[%emt 0:01:38]} 22. Rae1 {[%emt 0:06:06]} Qd7 {[%emt 0:03:00]} 23. Bc3 {[%emt 0:00:43]} Rae8 {[%emt 0:00:49]} 24. Rd1 {[%emt 0:05:39]} Qc7 {[%emt 0:02:24]} 25. Ne3 {[%emt 0:01:02]} Be4 {[%emt 0:03:41]} 26. Bxf6 {[%emt 0:01:25]} Bxd3 {[%emt 0:00:23]} 27. Rxd3 {[%emt 0:00:40]} gxf6 {[%emt 0:01:10]} 28. Nf5 {[%emt 0:00:59]} Qe5 {[%emt 0:01:56]} 29. Rg3+ {[%emt 0:18:14]} Kf8 {[%emt 0:00:14]} 30. Rg4 {[%emt 0:02:21]} Qb5 {[%emt 0:00:38]} 31. Qb1 {[%emt 0:01:48]} Rd8 {[%emt 0:01:27]} 32. Nxh6 {[%emt 0:02:32]} Ne7 {[%emt 0:00:37]} 33. Qh7 {[%emt 0:03:58]} Qxf1+ {[%emt 0:00:07]} 34. Kh2 {[%emt 0:00:03]} Ke8 {[%emt 0:00:04]} 35. Qh8+ {[%emt 0:00:54]} Kd7 {[%emt 0:00:02]} 36. Rd4+ {[%emt 0:00:11]} Kc6 {[%emt 0:01:47]} 37. Qxd8 {[%emt 0:00:19]} Qxf2 {[%emt 0:00:13]} 38. Rc4+ {[%emt 0:02:36]} Kb5 {[%emt 0:00:07]} 39. Qd3 {[%emt 0:00:36]} Qe3 {[%emt 0:01:23]} 40. Rb4+ {[%emt 0:01:49]} Kc6 {[%emt 0:00:45]} 41. Qb5+ {[%emt 0:30:59]} Kc7 {[%emt 0:30:15]} 42. Qxb7+ {[%emt 0:00:00]} Kd8 {[%emt 0:00:00]} 43. Qb8+ {[%emt 0:00:00]} 1-0

[Event "XIV American Continental-ch 2019"]
[Site "Sao Paulo"]
[Date "2019.07.08"]
[Round "4.8"]
[White "Delgado Ramirez, Neuris"]
[Black "Sarkar, Justin"]
[Result "1/2-1/2"]
[ECO "C47"]
[WhiteElo "2605"]
[BlackElo "2389"]
[Annotator "RC"]
[PlyCount "120"]
[EventDate "2019.07.05"]
[EventType "swiss"]
[EventCountry "BRA"]
[SourceTitle "playchess.com"]
[Source "ChessBase"]
[SourceQuality "1"]
[TimeControl "40/5400+30:1800+30"]

1. e4 {[%emt 0:14:48]} e5 {[%emt 0:00:14]} 2. Nf3 {[%emt 0:00:09]} Nc6 {[%emt 0:00:09]} 3. Nc3 {[%emt 0:00:07]} Nf6 {[%emt 0:00:15]} 4. Be2 {[%emt 0:00:19]} d5 {[%emt 0:02:02]} 5. exd5 {[%emt 0:00:20]} Nxd5 {[%emt 0:00:14]} 6. O-O {[%emt 0:00:09]} Nxc3 {[%emt 0:00:36]} 7. bxc3 {[%emt 0:00:03]} e4 {[%emt 0:00:40]} 8. Ne1 {[%emt 0:00:03]} Be6 {[%emt 0:03:53]} 9. f3 {[%emt 0:04:38]} exf3 {[%emt 0:13:00]} 10. Nxf3 {[%emt 0:00:30]} Be7 {[%emt 0:01:47]} 11. d4 {[%emt 0:00:23]} Bf6 {[%emt 0:14:54]} 12. Kh1 {[%emt 0:04:16]} O-O {[%emt 0:04:11]} 13. Bd3 {[%emt 0:00:05]} Na5 {[%emt 0:10:07]} 14. Qe1 {[%emt 0:01:17]} Re8 {[%emt 0:04:41]} 15. Qg3 {[%emt 0:00:35]} Bc4 {[%emt 0:10:13]} 16. Bg5 {[%emt 0:02:43]} Bxd3 {[%emt 0:08:33]} 17. cxd3 {[%emt 0:00:43]} Bxg5 {[%emt 0:00:19]} 18. Nxg5 {[%emt 0:00:11]} f6 {[%emt 0:06:55]} 19. Ne4 {[%emt 0:00:57]} Rf8 {[%emt 0:00:10]} 20. Rf5 {[%emt 0:01:54]} b6 {[%emt 0:00:33]} 21. Raf1 {[%emt 0:01:08]} Kh8 {[%emt 0:01:26]} 22. Rh5 {[%emt 0:03:47]} Qe8 {[%emt 0:00:31]} 23. Rh3 {[%emt 0:02:37]} Rc8 {[%emt 0:12:03]} 24. Qh4 {[%emt 0:01:12]} Qg6 {[%emt 0:01:49]} 25. d5 {[%emt 0:01:34]} Nb7 {[%emt 0:00:44]} 26. Qf4 {[%emt 0:01:51]} Rfd8 {[%emt 0:01:36]} 27. c4 {[%emt 0:04:44]} Nd6 {[%emt 0:00:19]} 28. Rg3 {[%emt 0:03:01]} Qf7 {[%emt 0:00:08]} 29. Re3 {[%emt 0:02:39]} Nxe4 {[%emt 0:00:15]} 30. dxe4 {[%emt 0:00:06]} Qg6 {[%emt 0:01:26]} 31. e5 {[%emt 0:00:30]} fxe5 {[%emt 0:00:17]} 32. Rxe5 {[%emt 0:00:06]} h6 {[%emt 0:00:49]} 33. Re6 {[%emt 0:01:34]} Qd3 {[%emt 0:01:00]} 34. Re3 {[%emt 0:04:07]} Qg6 {[%emt 0:00:28]} 35. Rg3 {[%emt 0:00:47]} Qd6 {[%emt 0:00:32]} 36. Qg4 {[%emt 0:01:35]} Qd7 {[%emt 0:00:13]} 37. Qd4 {[%emt 0:06:02]} Rf8 {[%emt 0:00:14]} 38. Rd1 {[%emt 0:00:29]} Rce8 {[%emt 0:00:44]} 39. h3 {[%emt 0:00:36]} Rf5 {[%emt 0:00:55]} 40. Rg6 {[%emt 0:00:50]} Kh7 {[%emt 0:00:32]} 41. Qg4 {[%emt 0:30:38]} Ree5 {[%emt 0:11:17]} 42. Rc6 {[%emt 0:00:00]} Qf7 {[%emt 0:00:23]} 43. Kh2 {[%emt 0:00:00]} Rf6 {[%emt 0:04:12]} 44. Rxf6 {[%emt 0:00:00]} Qxf6 {[%emt 0:00:03]} 45. Qg3 {[%emt 0:00:00]} h5 {[%emt 0:02:04]} 46. Rd4 {[%emt 0:00:00]} Rg5 {[%emt 0:01:40]} 47. Qd3+ {[%emt 0:00:00]} Qg6 {[%emt 0:02:31]} 48. Qf3 {[%emt 0:00:00]} Qd6+ {[%emt 0:00:18]} 49. Kg1 {[%emt 0:00:00]} Qg3 {[%emt 0:02:45]} 50. Qxg3 {[%emt 0:05:38]} Rxg3 {[%emt 0:00:09]} 51. c5 {[%emt 0:00:03]} bxc5 {[%emt 0:01:22]} 52. Ra4 {[%emt 0:00:03]} Rd3 {[%emt 0:01:01]} 53. Rxa7 {[%emt 0:00:06]} Rxd5 {[%emt 0:00:23]} 54. Rxc7 {[%emt 0:00:06]} Rd1+ {[%emt 0:00:35]} 55. Kh2 {[%emt 0:00:04]} Rc1 {[%emt 0:01:35]} 56. a4 {[%emt 0:00:08]} c4 {[%emt 0:00:59]} 57. a5 {[%emt 0:00:06]} c3 {[%emt 0:00:14]} 58. a6 {[%emt 0:00:04]} Ra1 {[%emt 0:00:33]} 59. a7 {[%emt 0:00:13]} c2 {[%emt 0:00:09]} 60. Rxc2 {[%emt 0:00:26]} Rxa7 {[%emt 0:00:05]} 1/2-1/2

[Event "XIV American Continental-ch 2019"]
[Site "Sao Paulo"]
[Date "2019.07.07"]
[Round "4.9"]
[White "Languidey, Simon Alejandro"]
[Black "Mecking, Henrique"]
[Result "1/2-1/2"]
[ECO "B26"]
[WhiteElo "2427"]
[BlackElo "2576"]
[Annotator "ChessBase"]
[PlyCount "48"]
[EventDate "2019.07.05"]
[EventType "swiss"]
[EventCountry "BRA"]
[SourceTitle "playchess.com"]
[Source "ChessBase"]
[SourceQuality "1"]
[TimeControl "40/5400+30:1800+30"]

1. e4 {[%emt 0:03:12]} c5 {[%emt 0:01:43]} 2. Nc3 {[%emt 0:00:26]} d6 {[%emt 0:00:17]} 3. g3 {[%emt 0:00:28]} Nc6 {[%emt 0:00:10]} 4. Bg2 {[%emt 0:00:20]} g6 {[%emt 0:00:07]} 5. d3 {[%emt 0:01:15]} Bg7 {[%emt 0:00:14]} 6. Be3 {[%emt 0:01:27]} e6 {[%emt 0:01:01]} 7. Qd2 {[%emt 0:01:56]} Nd4 {[%emt 0:02:24]} 8. Nce2 {[%emt 0:11:49]} Nxe2 {[%emt 0:06:04]} 9. Nxe2 {[%emt 0:00:20]} Bxb2 {[%emt 0:02:34]} 10. Rd1 {[%emt 0:00:11]} Bg7 {[%emt 0:02:58]} 11. d4 {[%emt 0:00:33]} cxd4 {[%emt 0:03:59]} 12. Bxd4 {[%emt 0:04:45]} Bxd4 {[%emt 0:05:30]} 13. Nxd4 {[%emt 0:01:49]} a6 {[%emt 0:15:41]} 14. O-O {[%emt 0:04:47]} Nf6 {[%emt 0:03:40]} 15. Nb3 {[%emt 0:01:48]} e5 {[%emt 0:04:36]} 16. Qxd6 {[%emt 0:08:23]} Qxd6 {[%emt 0:01:02]} 17. Rxd6 {[%emt 0:00:11]} Ke7 {[%emt 0:00:28]} 18. Rfd1 {[%emt 0:01:45]} Be6 {[%emt 0:05:09]} 19. Rb6 {[%emt 0:08:26]} Rhc8 {[%emt 0:02:38]} 20. Rxb7+ {[%emt 0:01:27]} Kf8 {[%emt 0:00:15]} 21. Rd2 {[%emt 0:00:50]} a5 {[%emt 0:01:33]} 22. a4 {[%emt 0:07:01]} Rc3 {[%emt 0:19:16]} 23. f3 {[%emt 0:10:11]} Rac8 {[%emt 0:01:06]} 24. Nxa5 {[%emt 0:02:58]} Rxc2 {[%emt 0:00:31]} 1/2-1/2